bitfinex/quotes_SOLUSD_20220208
["timestamp","ask_amount","ask_price","bid_price","bid_amount"]
[1644308923699,0.2,115.19,115.16,20.58937273]
[1644308923999,0.2,115.19,115.17,13.0176]
[1644308924198,0.2,115.19,115.18,6.06439994]
[1644308924598,0.2,115.19,115.18,6.31439994]
[1644308924799,0.02953327,115.25,115.18,26.64927428]
[1644308925001,14.21043875,115.28,115.18,26.64927428]
[1644308925198,14.18090548,115.28,115.18,26.64927428]
[1644308925599,1.16440548,115.27,115.18,24.84439994]
[1644308925803,1.16440548,115.27,115.18,37.86249994]
[1644308925999,1.41440548,115.27,115.18,37.86249994]
[1644308926403,14.43180548,115.27,115.18,31.86249994]
[1644308926605,1.16440548,115.26,115.18,18.84439994]
[1644308927003,1.41440548,115.27,115.18,24.84439994]
[1644308927703,14.43220548,115.27,115.18,18.84439994]
[1644308928108,1.16440548,115.26,115.18,24.84439994]
[1644308928809,1.16440548,115.25,115.18,18.84439994]
[1644308929008,1.16440548,115.25,115.18,6.31439994]
[1644308929208,1.16440548,115.25,115.18,6.06439994]
[1644308929809,13.0203,115.24,115.18,6.06439994]
[1644308930011,14.18470548,115.24,115.18,6.06439994]
[1644308930209,14.18470548,115.24,115.14,14.33487434]
[1644308930610,14.18470548,115.24,115.14,14.58487434]
[1644308931209,14.18470548,115.24,115.14,12.53]
[1644308931416,14.18470548,115.24,115.14,25.5524]
[1644308931609,1.16440548,115.23,115.13,48.3033]
[1644308931810,13.0237,115.21,115.13,48.3033]
[1644308933313,13.0237,115.21,115.13,48.5533]
[1644308933711,14.18810548,115.21,115.13,61.3267]
[1644308934714,1.16440548,115.2,115.13,48.3033]
[1644308934913,13.0262,115.19,115.11,12.53]
[1644308935113,13.0262,115.19,115.1,26.0212977]
[1644308935114,14.19060548,115.19,115.1,26.0212977]
[1644308935311,14.19060548,115.19,115.08,169.89725181]
[1644308935312,21.84560548,115.19,115.08,50.06335181]
[1644308935513,34.37560548,115.19,115.08,48.2593]
[1644308935712,1.16440548,115.17,115.05,1.80405181]
[1644308936212,1.16440548,115.16,115.05,1.80405181]
[1644308936813,13.0329,115.15,115.05,14.83635181]
[1644308938014,13.0329,115.15,115.05,15.08635181]
[1644308938213,13.0329,115.15,115.05,2.05405181]
[1644308938415,13.0329,115.15,115.05,1.80405181]
[1644308939715,13.0329,115.15,115.03,14.32503313]
[1644308939918,13.0329,115.15,115.04,6.0]
[1644308940115,13.0329,115.15,115.05,14.32503313]
[1644308940516,1.16440548,115.16,115.05,20.32503313]
[1644308940719,0.02953327,115.17,115.06,24.6965]
[1644308940919,0.02953327,115.18,115.09,13.026]
[1644308941216,1.16440548,115.2,115.1,12.53]
[1644308941416,1.16440548,115.21,115.1,14.32503313]
[1644308941616,1.16440548,115.21,115.11,26.49153313]
[1644308941816,1.16440548,115.21,115.11,26.74153313]
[1644308942016,1.16440548,115.21,115.11,32.74153313]
[1644308942317,13.0247,115.2,115.08,1.79503313]
[1644308942518,14.21863875,115.2,115.08,1.79503313]
[1644308942718,1.16440548,115.19,115.07,22.6869]
[1644308942916,1.16440548,115.18,115.08,1.79503313]
[1644308943115,1.16440548,115.18,115.08,7.79503313]
[1644308943318,13.0304,115.16,115.08,1.79503313]
[1644308943519,13.0304,115.16,115.08,7.79503313]
[1644308943819,13.0304,115.16,115.08,8.04503313]
[1644308944017,13.0304,115.16,115.08,2.04503313]
[1644308944618,13.0304,115.16,115.08,8.04503313]
[1644308944916,13.0282,115.17,115.08,2.04503313]
[1644308945116,13.0282,115.17,115.08,8.04503313]
[1644308945818,13.0271,115.18,115.08,21.07383313]
[1644308946045,0.02953327,115.19,115.08,56.86883313]
[1644308946218,1.19393875,115.2,115.08,56.86883313]
[1644308947219,14.21763875,115.21,115.08,56.86883313]
[1644308947418,0.25,115.2,115.08,56.86883313]
[1644308947627,14.21763875,115.21,115.08,56.86883313]
[1644308947820,14.46763875,115.21,115.08,56.86883313]
[1644308948323,13.05323327,115.21,115.08,56.86883313]
[1644308948822,13.05323327,115.21,115.09,4.342]
[1644308949022,13.05323327,115.21,115.12,13.0227]
[1644308949321,13.0237,115.21,115.12,19.2727]
[1644308949523,13.2737,115.21,115.13,1.79503313]
[1644308949724,13.2737,115.21,115.13,8.04503313]
[1644308949921,13.2737,115.21,115.11,37.2535]
[1644308950124,13.2737,115.21,115.1,14.32503313]
[1644308950323,13.2737,115.21,115.08,12.53]
[1644308950324,14.43810548,115.21,115.08,12.53]
[1644308950624,13.0289,115.17,115.07,14.32503313]
[1644308950928,24.4769,115.17,115.07,1.79503313]
[1644308951126,24.4769,115.17,115.06,50.602]
[1644308951323,24.4769,115.17,115.06,46.261]
[1644308951725,24.4769,115.17,115.04,375.88604022]
[1644308951726,24.4769,115.17,115.04,363.35604022]
[1644308952023,38.17130548,115.17,115.04,363.35604022]
[1644308952325,40.52906097,115.17,115.04,361.56100709]
[1644308952524,11.67914833,115.16,115.04,361.56100709]
[1644308952727,13.0388,115.13,115.0,1.79503313]
[1644308952926,35.6318,115.13,114.98,389.4669715]
[1644308953125,2.10775549,115.12,114.98,389.4669715]
[1644308953326,12.53,115.11,114.98,389.4669715]
[1644308953732,2.10775549,115.1,114.96,515.42406729]
[1644308953929,12.53,115.09,114.96,515.42406729]
[1644308954132,13.043,115.08,114.97,1.79503313]
[1644308954731,2.10775549,115.07,114.94,1.79503313]
[1644308954931,2.10775549,115.07,114.92,1.23087785]
[1644308955131,12.53,115.06,114.92,1.23087785]
[1644308955332,12.53,115.06,114.9,1.79503313]
[1644308955532,2.10775549,115.05,114.9,7.79503313]
[1644308955732,12.53,115.04,114.9,1.79503313]
[1644308956833,27.68425549,115.04,114.9,1.79503313]
[1644308957034,27.68425549,115.04,114.9,7.79503313]
[1644308957235,27.68425549,115.04,114.9,1.79503313]
[1644308957434,25.5765,115.04,114.9,1.79503313]
[1644308958034,13.0465,115.04,114.9,1.79503313]
[1644308958235,13.2965,115.04,114.9,1.79503313]
[1644308958733,13.2965,115.04,114.9,8.04503313]
[1644308958936,13.2965,115.04,114.9,12.39303313]
[1644308959834,13.2965,115.04,114.9,25.44023313]
[1644308960336,13.0465,115.04,114.9,21.09223313]
[1644308960736,13.0465,115.04,114.9,43.90047527]
[1644308960938,13.0429,115.06,114.9,56.54047599]
[1644308961155,13.0429,115.06,114.94,113.1]
[1644308961354,13.0429,115.06,114.95,13.0414]
[1644308961655,13.0429,115.06,114.95,20.83643313]
[1644308961855,13.0429,115.06,114.96,1.79503313]
[1644308962153,13.0429,115.06,114.96,7.79503313]
[1644308962356,13.0429,115.06,114.96,8.04503313]
[1644308962654,13.0429,115.06,114.97,1.79503313]
[1644308962854,13.0429,115.06,114.97,2.04503313]
[1644308963053,13.0429,115.06,114.97,8.04503313]
[1644308963256,13.0429,115.06,114.98,1.79503313]
[1644308963653,13.0429,115.06,114.98,2.04503313]
[1644308964054,13.2929,115.06,114.98,2.04503313]
[1644308964257,13.2929,115.06,114.95,14.83643313]
[1644308964457,13.2929,115.06,114.95,1.79503313]
[1644308965555,13.2929,115.06,114.93,39.44633313]
[1644308965756,13.2929,115.06,114.93,32.65273313]
[1644308966156,13.0429,115.06,114.93,32.65273313]
[1644308966357,13.0429,115.06,114.94,10.44]
[1644308966557,13.0429,115.06,114.94,20.787]
[1644308966759,13.0429,115.06,114.95,1.79503313]
[1644308966957,13.0405,115.08,114.95,25.27683313]
[1644308967156,25.48695549,115.11,114.95,25.27683313]
[1644308967157,23.3792,115.11,114.95,79.08693313]
[1644308967357,23.3792,115.11,114.96,6.14103313]
[1644308967556,23.3792,115.11,114.97,10.44]
[1644308967759,23.3792,115.11,114.97,47.85717527]
[1644308967958,23.3792,115.11,114.98,1.79503313]
[1644308968258,13.0361,115.12,114.99,23.4774]
[1644308968460,22.8504,115.15,114.99,72.3402]
[1644308968660,22.8504,115.15,115.0,6.14003313]
[1644308968858,22.8504,115.15,115.01,10.44]
[1644308969057,22.8504,115.15,115.01,43.14263313]
[1644308969260,22.8504,115.15,115.02,1.79503313]
[1644308969459,43.4467,115.17,115.03,10.44]
[1644308969663,0.25,115.15,115.03,16.44]
[1644308969861,13.0316,115.16,115.04,14.82663313]
[1644308970062,13.0316,115.16,115.04,20.82663313]
[1644308970260,13.0316,115.16,115.04,21.07663313]
[1644308970864,13.0316,115.16,115.04,15.07663313]
[1644308971070,13.0316,115.16,115.04,2.04503313]
[1644308971662,13.0316,115.16,115.04,0.25]
[1644308971865,13.0316,115.16,115.02,25.51863313]
[1644308972062,13.0316,115.16,115.02,31.51863313]
[1644308972262,13.0316,115.16,115.04,1.79503313]
[1644308972465,13.0316,115.16,115.02,31.51863313]
[1644308973162,25.57935549,115.16,115.02,6.25]
[1644308973363,25.82935549,115.16,115.02,0.25]
[1644308973765,25.82935549,115.16,115.01,25.1576]
[1644308974567,25.82935549,115.16,115.01,24.9076]
[1644308975067,25.82935549,115.16,115.0,75.0774]
[1644308975267,25.82935549,115.16,114.99,23.9552]
[1644308975467,34.79511214,115.16,114.99,23.9552]
[1644308975870,1.16440548,115.15,114.99,23.9552]
[1644308976069,13.0412,115.11,114.99,23.9552]
[1644308976872,13.0412,115.11,114.98,460.8143685]
[1644308976873,10.44,115.1,114.98,459.01933537]
[1644308977071,13.0447,115.07,114.98,459.01933537]
[1644308977473,15.15245549,115.07,114.98,459.01933537]
[1644308977871,13.0447,115.07,114.98,459.01933537]
[1644308978771,13.0447,115.07,114.94,10.44]
[1644308978971,13.0447,115.07,114.98,1.79503313]
[1644308979373,13.0447,115.07,114.98,2.04503313]
[1644308981271,13.2947,115.07,114.98,2.04503313]
[1644308982374,13.0447,115.07,114.98,2.04503313]
[1644308983075,13.0447,115.07,114.98,8.04503313]
[1644308983275,13.0447,115.07,114.98,2.04503313]
[1644308983675,13.2947,115.07,114.98,2.04503313]
[1644308986683,13.0389,115.09,114.98,21.08423313]
[1644308986878,44.62500548,115.12,114.98,25.52423313]
[1644308987087,1.16440548,115.14,114.98,31.52423313]
[1644308987279,1.16440548,115.14,114.99,24.9129]
[1644308987480,1.16440548,115.14,115.0,10.44]
[1644308987679,1.16440548,115.14,114.99,24.9129]
[1644308987680,13.0369,115.11,115.01,47.8126]
[1644308987880,22.5869,115.11,115.0,2.04503313]
[1644308988081,12.54775549,115.1,115.0,2.04503313]
[1644308988280,12.54775549,115.1,114.97,210.32453313]
[1644308988581,12.54775549,115.1,114.97,95.4295]
[1644308988781,13.0435,115.07,114.97,95.4295]
[1644308988981,13.0435,115.07,114.97,97.22453313]
[1644308990482,13.2935,115.07,114.97,97.22453313]
[1644308990784,13.4009029,115.07,114.97,97.22453313]
[1644308991498,13.4009029,115.07,114.97,97.47453313]
[1644308992085,13.4009029,115.07,114.97,1.79503313]
[1644308992285,10.44,115.06,114.94,24.87793313]
[1644308992583,13.048,115.03,114.94,23.0829]
[1644308992783,13.1554029,115.03,114.94,23.0829]
[1644308993587,23.5954029,115.03,114.94,23.0829]
[1644308993984,23.8454029,115.03,114.94,23.0829]
[1644308994588,23.5954029,115.03,114.93,2.3050124]
[1644308994813,23.5954029,115.03,114.93,2.5550124]
[1644308995987,23.8454029,115.03,114.93,2.5550124]
[1644308996489,23.8454029,115.03,114.93,2.3050124]
[1644308997790,23.8454029,115.03,114.93,2.5550124]
[1644308998090,23.8454029,115.03,114.93,4.35004553]
[1644308999490,13.4054029,115.03,114.93,20.79004553]
[1644308999692,0.3574029,115.03,114.93,20.79004553]
[1644308999891,0.3574029,115.03,114.93,45.46002338]
[1644309000092,0.1074029,115.03,114.93,58.50522338]
[1644309001095,0.1074029,115.03,114.93,57.27434553]
[1644309001295,0.1074029,115.03,114.93,58.25522338]
[1644309001492,0.1074029,115.03,114.93,57.02434553]
[1644309001692,13.1519029,115.03,114.93,51.02434553]
[1644309001893,13.1519029,115.03,114.93,27.53914553]
[1644309002094,13.1519029,115.03,114.93,25.7441124]
[1644309003816,13.4019029,115.03,114.93,25.7441124]
[1644309005020,13.4019029,115.03,114.93,2.3050124]
[1644309005219,13.1519029,115.03,114.94,1.78961161]
[1644309005619,13.1519029,115.03,114.94,0.25]
[1644309005819,13.1519029,115.03,114.93,2.3290124]
[1644309006029,13.1519029,115.03,114.93,2.5550124]
[1644309006221,13.1519029,115.03,114.93,2.3050124]
[1644309006420,15.50965839,115.03,114.93,2.3050124]
[1644309006619,25.94965839,115.03,114.93,2.3050124]
[1644309007022,34.91541504,115.03,114.93,2.3050124]
[1644309007221,48.95943861,115.03,114.93,2.3050124]
[1644309007623,46.85168312,115.03,114.93,2.3050124]
[1644309009522,32.80765955,115.03,114.93,2.3050124]
[1644309010527,32.55765955,115.03,114.93,2.3050124]
[1644309010724,13.1519029,115.03,114.94,1.7892069]
[1644309010925,13.1519029,115.03,114.94,2.0392069]
[1644309011125,13.1519029,115.03,114.93,8.3290124]
[1644309011324,13.1519029,115.03,114.93,2.3050124]
[1644309012327,13.1519029,115.03,114.93,2.5550124]
[1644309012732,13.1519029,115.03,115.0,0.5]
[1644309014526,0.1074029,115.03,115.0,0.5]
[1644309014927,0.1074029,115.03,115.01,3.03219997]
[1644309015131,0.1074029,115.03,115.01,6.06439994]
[1644309015329,0.1074029,115.03,115.01,6.31439994]
[1644309015528,0.1074029,115.03,115.01,6.06439994]
[1644309016129,0.1074029,115.03,115.01,6.31439994]
[1644309016530,0.0074029,115.03,115.01,6.31439994]
[1644309016930,0.0074029,115.03,115.01,14.10286741]
[1644309017131,0.0074029,115.03,115.02,48.2126]
[1644309017335,0.0074029,115.03,115.02,48.4626]
[1644309017538,0.0074029,115.03,115.02,54.4626]
[1644309018031,0.0074029,115.03,115.02,69.28556747]
[1644309021132,0.0074029,115.03,115.02,79.72556747]
[1644309022131,0.2074029,115.03,115.02,79.72556747]
[1644309022331,0.0074029,115.03,115.02,79.72556747]
[1644309022533,13.0343,115.12,115.03,13.0338]
[1644309022731,13.4491058,115.12,115.03,13.2838]
[1644309023633,13.4491058,115.12,115.03,15.0827569]
[1644309023834,0.4148058,115.12,115.03,15.0827569]
[1644309024035,0.4148058,115.12,115.03,31.5227569]
[1644309024235,0.4148058,115.12,115.05,13.0316]
[1644309024439,0.4148058,115.12,115.06,22.6397]
[1644309024738,0.4148058,115.12,115.06,22.8897]
[1644309024935,0.4148058,115.12,115.06,47.4015]
[1644309025339,35.05058152,115.19,115.06,47.4015]
[1644309025537,0.03031248,115.16,115.1,0.5]
[1644309025938,0.17877264,115.19,115.11,10.44]
[1644309026139,0.17877264,115.19,115.11,18.2389569]
[1644309026338,0.17877264,115.19,115.12,49.9956569]
[1644309026538,0.17877264,115.19,115.13,10.44]
[1644309026740,0.17877264,115.19,115.14,23.192]
[1644309027139,0.17877264,115.19,115.14,41.6809569]
[1644309028743,0.17877264,115.19,115.14,54.7009569]
[1644309029343,0.17877264,115.19,115.14,33.632]
[1644309029543,0.17877264,115.19,115.12,24.2535]
[1644309029943,0.17877264,115.19,115.1,0.5]
[1644309030345,0.17877264,115.19,115.1,2.29842297]
[1644309030544,0.17877264,115.19,115.11,23.0377]
[1644309030746,0.17877264,115.19,115.11,23.2877]
[1644309032145,0.17877264,115.19,115.11,23.0377]
[1644309032347,0.17877264,115.19,115.11,30.83086139]
[1644309033146,0.17877264,115.19,115.11,24.83086139]
[1644309033346,0.17877264,115.19,115.11,23.0377]
[1644309033550,0.17877264,115.19,115.11,23.2877]
[1644309034049,0.17877264,115.19,115.12,1.79316139]
[1644309034247,0.17877264,115.19,115.12,2.04316139]
[1644309034447,0.17877264,115.19,115.12,0.25]
[1644309035549,0.17877264,115.19,115.11,23.2877]
[1644309035950,0.17877264,115.19,115.12,1.78552152]
[1644309036167,0.17877264,115.19,115.12,7.78552152]
[1644309036368,0.17877264,115.19,115.12,2.03552152]
[1644309036564,0.17877264,115.19,115.12,8.03552152]
[1644309036766,0.17877264,115.19,115.12,2.03552152]
[1644309036967,0.17877264,115.19,115.12,8.03552152]
[1644309037976,0.17877264,115.19,115.12,18.47552152]
[1644309038172,0.17877264,115.19,115.13,23.9472]
[1644309038572,0.17877264,115.19,115.1,0.5]
[1644309038775,0.17877264,115.19,115.1,24.4472]
[1644309039469,0.17877264,115.19,115.1,24.6972]
[1644309040276,0.17877264,115.19,115.1,24.4472]
[1644309040674,2.10775549,115.18,115.1,0.5]
[1644309040874,13.0334,115.16,115.1,0.5]
[1644309041075,20.9264,115.16,115.1,0.5]
[1644309041275,2.10775549,115.15,115.04,450.39446445]
[1644309042374,10.44,115.14,115.04,450.39446445]
[1644309042876,13.0379,115.12,115.02,46.7793]
[1644309043678,13.0379,115.12,115.02,47.0293]
[1644309043881,13.0342,115.14,115.02,59.58350266]
[1644309044081,0.03024722,115.16,115.03,4.345]
[1644309044277,0.03024722,115.16,115.03,15.035]
[1644309044477,0.03024722,115.16,115.03,21.035]
[1644309044878,13.06184722,115.16,115.04,35.9154]
[1644309045081,13.0316,115.16,115.04,41.9154]
[1644309045281,13.0316,115.16,115.04,42.1654]
[1644309046082,13.2816,115.16,115.04,42.1654]
[1644309046280,0.03024722,115.17,115.05,4.344]
[1644309046482,0.20901986,115.18,115.08,13.0275]
[1644309046680,0.03024722,115.17,115.09,22.749]
[1644309046880,0.17877264,115.18,115.09,22.749]
[1644309047085,0.17877264,115.18,115.09,28.749]
[1644309047280,0.17877264,115.18,115.09,28.999]
[1644309047881,0.17877264,115.18,115.1,24.2611]
[1644309048281,0.17877264,115.18,115.1,24.5111]
[1644309049482,0.17877264,115.18,115.11,23.4612]
[1644309049882,0.17877264,115.18,115.11,23.7112]
[1644309051087,13.33287675,115.19,115.11,23.7112]
[1644309051688,13.33287675,115.19,115.11,23.4612]
[1644309051886,13.33287675,115.19,115.1,24.2611]
[1644309052087,15.44063224,115.19,115.07,10.44]
[1644309052285,13.36312397,115.19,115.07,1.78552152]
[1644309052486,0.3877925,115.19,115.08,10.44]
[1644309052686,0.3877925,115.19,115.09,23.4885]
[1644309052885,0.35754528,115.19,115.1,10.44]
[1644309053086,0.35754528,115.19,115.11,23.4885]
[1644309053385,0.35754528,115.19,115.12,24.7481]
[1644309053785,0.35754528,115.19,115.12,24.9981]
[1644309054387,0.35754528,115.19,115.12,24.7481]
[1644309054585,0.35754528,115.19,115.1,6.0]
[1644309054785,2.10775549,115.18,115.07,1.23087785]
[1644309054985,2.10775549,115.18,115.06,23.833]
[1644309055487,12.54775549,115.18,115.03,23.259]
[1644309055684,23.56714722,115.17,115.03,45.9946]
[1644309055884,25.67490271,115.17,115.03,45.9946]
[1644309056086,2.10775549,115.16,115.03,45.9946]
[1644309056284,2.10775549,115.16,115.01,352.30573474]
[1644309056487,23.4744,115.15,115.01,351.07485689]
[1644309056686,47.1662,115.15,115.01,351.07485689]
[1644309056885,2.10775549,115.14,115.01,351.07485689]
[1644309057286,10.44,115.13,115.01,0.024]
[1644309057485,10.44,115.13,115.0,0.024]
[1644309057687,13.0395,115.11,115.0,0.024]
[1644309057888,10.44,115.1,115.0,0.024]
[1644309058087,12.54775549,115.1,114.98,0.024]
[1644309058388,2.10775549,115.09,114.97,0.024]
[1644309058586,10.44,115.08,114.95,7.25487785]
[1644309058786,10.44,115.08,114.96,0.024]
[1644309059088,13.0455,115.07,114.96,0.024]
[1644309059490,15.15325549,115.07,114.96,0.024]
[1644309059690,38.12425549,115.07,114.96,0.024]
[1644309061089,38.12425549,115.07,114.93,0.024]
[1644309061290,47.24026778,115.07,114.93,0.024]
[1644309061493,61.09639281,115.07,114.93,0.024]
[1644309061692,189.65917733,115.07,114.93,0.024]
[1644309061892,13.23034005,115.06,114.93,0.024]
[1644309062093,13.0573,115.03,114.93,0.024]
[1644309062315,10.44,115.02,114.92,2.3156254]
[1644309062492,5.0,115.01,114.92,2.2916254]
[1644309062691,10.44,115.0,114.92,2.2916254]
[1644309063092,12.54775549,115.0,114.92,2.2916254]
[1644309063292,2.10775549,114.99,114.92,2.2916254]
[1644309063492,10.44,114.98,114.92,2.2916254]
[1644309063893,10.44,115.0,114.92,2.2916254]
[1644309064094,0.25,114.98,114.92,2.2916254]
[1644309064293,10.44,115.0,114.92,2.2916254]
[1644309064795,12.54775549,115.0,114.92,2.2916254]
[1644309065593,12.79775549,115.0,114.92,2.2916254]
[1644309065792,13.0558,114.97,114.92,2.2916254]
[1644309068394,2.10775549,114.96,114.92,2.2916254]
[1644309068595,13.0603,114.95,114.92,2.2916254]
[1644309068796,13.0603,114.95,114.86,0.024]
[1644309068994,13.0603,114.95,114.84,0.024]
[1644309069294,13.0603,114.95,114.83,23.0572]
[1644309070695,24.3953,114.95,114.83,23.0572]
[1644309070895,24.3953,114.95,114.83,0.024]
[1644309070896,26.50305549,114.95,114.83,0.024]
[1644309071109,36.94305549,114.95,114.83,0.024]
[1644309072198,37.19305549,114.95,114.83,0.024]
[1644309075103,51.04918052,114.95,114.83,0.024]
[1644309075506,60.16519281,114.95,114.83,0.024]
[1644309075706,203.94553286,114.95,114.83,0.024]
[1644309076104,130.55,114.93,114.83,0.024]
[1644309076304,13.071,114.9,114.81,0.53568676]
[1644309076505,37.1807,114.9,114.81,0.51168676]
[1644309076704,10.44,114.89,114.81,0.51168676]
[1644309077104,24.1097,114.9,114.81,0.51168676]
[1644309077105,24.1097,114.9,114.81,2.30229117]
[1644309077527,13.0636,114.89,114.81,2.30229117]
[1644309078126,13.0636,114.89,114.81,0.51168676]
[1644309078527,13.0636,114.89,114.81,2.30229117]
[1644309078727,13.0609,114.92,114.81,2.55229117]
[1644309078929,13.0609,114.92,114.81,2.32629117]
[1644309079127,13.0609,114.92,114.81,2.57629117]
[1644309080230,13.0609,114.92,114.81,36.00079117]
[1644309080431,13.0579,114.94,114.81,46.44079117]
[1644309080630,13.0579,114.94,114.82,0.024]
[1644309081030,13.0579,114.94,114.82,1.80587508]
[1644309081231,13.0579,114.94,114.82,2.05587508]
[1644309082133,13.0579,114.94,114.82,0.274]
[1644309082334,13.0579,114.94,114.82,0.024]
[1644309082536,13.3079,114.94,114.82,0.024]
[1644309084238,13.0579,114.94,114.83,1.77744038]
[1644309084437,13.0579,114.94,114.83,48.93994038]
[1644309084638,13.0579,114.94,114.83,55.18994038]
[1644309084841,13.0579,114.94,114.84,1.77744038]
[1644309085044,13.0579,114.94,114.84,6.12844038]
[1644309085240,13.0554,114.96,114.84,12.37844038]
[1644309085441,13.0554,114.96,114.85,1.80144038]
[1644309085643,2.10775549,114.95,114.85,0.024]
[1644309085842,2.10775549,114.95,114.83,57.6265]
[1644309086043,48.0617,114.97,114.83,57.6265]
[1644309086245,48.3117,114.97,114.84,0.024]
[1644309086443,0.25,114.97,114.84,0.024]
[1644309086642,0.25,114.97,114.85,1.77744038]
[1644309086843,45.88125549,114.98,114.85,12.49144038]
[1644309087042,45.88125549,114.98,114.86,23.2536]
[1644309087243,45.88125549,114.98,114.86,25.30504038]
[1644309087447,45.88125549,114.98,114.86,23.5276]
[1644309087647,45.88125549,114.98,114.87,0.024]
[1644309087847,13.0555,114.96,114.87,0.024]
[1644309088050,12.54775549,115.0,114.87,1.77744038]
[1644309088246,43.5108,115.01,114.88,1.77744038]
[1644309088448,2.10775549,115.02,114.88,25.19184038]
[1644309088646,2.10775549,115.02,114.89,0.024]
[1644309088846,2.10775549,115.02,114.9,10.44]
[1644309089047,13.0508,115.0,114.91,0.024]
[1644309089247,13.0508,115.0,114.9,16.69]
[1644309089649,45.60735549,115.04,114.9,16.69]
[1644309089948,45.60735549,115.04,114.91,49.8563]
[1644309090150,45.60735549,115.04,114.92,0.024]
[1644309090348,47.9696,115.05,114.92,0.024]
[1644309090749,12.54775549,115.06,114.92,0.024]
[1644309091250,2.10775549,115.05,114.92,0.024]
[1644309091452,13.0462,115.04,114.92,0.024]
[1644309091850,2.10775549,115.03,114.92,0.024]
[1644309092655,13.0501,115.01,114.92,0.024]
[1644309092953,13.0501,115.01,114.91,49.8323]
[1644309093152,2.10775549,115.0,114.91,49.8323]
[1644309094354,13.0531,114.98,114.88,0.024]
[1644309094753,13.0531,114.98,114.86,0.024]
[1644309094754,2.10775549,114.97,114.86,0.024]
[1644309094955,10.44,114.96,114.84,0.024]
[1644309095357,10.56892509,114.95,114.82,0.024]
[1644309095555,13.0616,114.94,114.82,0.024]
[1644309095857,25.60935549,114.94,114.82,0.024]
[1644309096276,2.10775549,114.93,114.82,0.024]
[1644309096575,13.0648,114.9,114.82,0.024]
[1644309096776,13.0648,114.9,114.81,0.51168676]
[1644309097275,9.7448,114.9,114.81,0.51168676]
[1644309097476,9.7448,114.9,114.81,6.94034676]
[1644309097675,13.0595,114.92,114.81,6.91634676]
[1644309097879,13.0595,114.92,114.82,0.024]
[1644309099276,15.16725549,114.92,114.82,0.024]
[1644309099676,13.0595,114.92,114.82,0.024]
[1644309099882,15.16725549,114.92,114.82,0.024]
[1644309100078,25.60725549,114.92,114.82,0.024]
[1644309101277,8.4611696,114.91,114.82,0.024]
[1644309101483,13.0701,114.89,114.81,0.51168676]
[1644309101679,10.44,114.89,114.79,0.024]
[1644309101978,63.0,114.87,114.74,1.23087785]
[1644309102180,63.0,114.87,114.72,76.0828]
[1644309102181,72.354,114.87,114.72,1.23087785]
[1644309102382,165.94120958,114.86,114.7,1.23087785]
[1644309102582,179.01210958,114.86,114.69,1.23087785]
[1644309102779,5.0,114.84,114.69,1.23087785]
[1644309102981,10.56892509,114.85,114.69,1.23087785]
[1644309102982,10.44,114.83,114.69,1.23087785]
[1644309103179,10.44,114.82,114.7,1.23087785]
[1644309103579,13.0783,114.8,114.69,1.23087785]
[1644309103781,23.5183,114.8,114.68,1.23087785]
[1644309103980,25.62605549,114.8,114.68,1.23087785]
[1644309104681,25.62605549,114.8,114.67,29.78657785]
[1644309105687,25.62605549,114.8,114.67,28.5557]
[1644309105881,31.86597549,114.8,114.67,24.1997]
[1644309106081,31.86597549,114.8,114.65,3.31446145]
[1644309106683,31.86597549,114.8,114.65,2.0835836]
[1644309106982,40.32714509,114.8,114.65,2.0835836]
[1644309107383,40.57714509,114.8,114.65,2.0835836]
[1644309107596,32.11597549,114.8,114.65,3.85786822]
[1644309107784,31.86597549,114.8,114.65,3.85786822]
[1644309107986,31.86597549,114.8,114.65,9.85786822]
[1644309108784,31.86597549,114.8,114.65,8.0835836]
[1644309109084,40.32714509,114.8,114.65,2.0835836]
[1644309109285,40.32714509,114.8,114.65,2.3335836]
[1644309109884,40.32714509,114.8,114.65,2.0835836]
[1644309110085,40.32714509,114.8,114.65,2.3335836]
[1644309110490,40.32714509,114.8,114.65,2.0835836]
[1644309110686,51.80514509,114.8,114.65,2.0835836]
[1644309111288,52.05514509,114.8,114.65,2.0835836]
[1644309111786,40.32714509,114.8,114.65,2.0835836]
[1644309112389,52.01614509,114.8,114.65,2.0835836]